Workbook

Sheet ENTRY
A1: RECEX Data Entry. Test for simplified Balance Sheet. Accountant: Allyson Ugarte. IT expert: Ignacio Boixo. September 2013
A2: IFRS 2013 taxonomy: See www.ifrs.org/XBRL/IFRS-Taxonomy/2013/Pages/IFRS-Taxonomy-2013-files.aspx
A3: Checking Instance. Suggestion: Put the instance in the same folder than the IFRS taxonomy 2013 "entry points" and open it (see www.arelle.org )
B7: Data to generate XBRL | D7: Example 1 | F7: Example 2
A9: BANK NAME | B9: BANK 1 | D9: BANK 1 | F9: BANK 2
A10: Competent Authority | B10: www.bankregulator.gov | D10: www.bankregulator.gov | F10: www.bankregulator.gov
A12: Date | B12: 2013-07-07 | D12: 2013-07-07 | F12: 2013-07-07
A13: Currency | B13: USD | D13: USD | F13: USD
A15: Assets
A16: Non-current assets
A17: Property, plant and equipment | B17: 15000 | D17: 15000 | F17: 10000
A18: Investment property
A19: Goodwill
A20: Intangible assets other than goodwill | B20: 4000 | D20: 4000 | F20: 4000
A21: Investments accounted for using equity method
A22: Investments in subsidiaries, joint ventures and associates
A23: Non-current biological assets
A24: Trade and other non-current receivables
A25: Non-current inventories
A26: Deferred tax assets | B26: 1000 | D26: 1000 | F26: 1000
A27: Current tax assets, non-current | B27: 3000 | D27: 3000 | F27: 3000
A28: Other non-current financial assets
A29: Other non-current non-financial assets | B29: 7000 | D29: 7000 | F29: 14000
A30: Non-current non-cash assets pledged as collateral for which transferee has right by contract or custom to sell or repledge collateral
A31: Total non-current assets | B31: =SUM(B17:B30) -> 30000 | D31: =SUM(D17:D30) -> 30000 | F31: =SUM(F17:F30) -> 32000
A32: Current assets
A33: Current inventories
A34: Trade and other current receivables | B34: 220000 | D34: 220000 | F34: 420000
A35: Current tax assets, current
A36: Current biological assets
A37: Other current financial assets | B37: 135000 | D37: 135000 | F37: 266000
A38: Other current non-financial assets
A39: Cash and cash equivalents | B39: 32000 | D39: 32000 | F39: 124000
A40: Current non-cash assets pledged as collateral for which transferee has right by contract or custom to sell or repledge collateral
A41: Total current assets other than non-current assets or disposal groups classified as held for sale or as held for distribution to owners
A42: Non-current assets or disposal groups classified as held for sale or as held for distribution to owners
A43: Total current assets | B43: =SUM(B33:B42) -> 387000 | D43: =SUM(D33:D42) -> 387000 | F43: =SUM(F33:F42) -> 810000
A44: Total assets | B44: =B43+B31 -> 417000 | D44: =D43+D31 -> 417000 | F44: =F43+F31 -> 842000
A45: Equity and liabilities
A46: Equity
A47: Issued capital | B47: 95000 | D47: 95000 | F47: 190000
A48: Retained earnings | B48: 86000 | D48: 86000 | F48: 180000
A49: Share premium | B49: 10000 | D49: 10000 | F49: 20000
A50: Treasury shares | B50: -5000 | D50: -5000 | F50: -10000
A51: Other equity interest
A52: Other reserves
A53: Total equity attributable to owners of parent
A54: Non-controlling interests
A55: Total equity | B55: =SUM(B47:B54) -> 186000 | D55: =SUM(D47:D54) -> 186000 | F55: =SUM(F47:F54) -> 380000
A56: Liabilities
A57: Non-current liabilities [abstract]
A58: Non-current provisions [abstract]
A59: Non-current provisions for employee benefits
A60: Other non-current provisions
A61: Total non-current provisions | B61: 12000 | D61: 12000 | F61: 24000
A62: Trade and other non-current payables | B62: 140000 | D62: 140000 | F62: 120000
A63: Deferred tax liabilities
A64: Current tax liabilities, non-current
A65: Other non-current financial liabilities | B65: 3000 | D65: 3000 | F65: 6000
A66: Other non-current non-financial liabilities
A67: Total non-current liabilities | B67: =SUM(B60:B66) -> 155000 | D67: =SUM(D60:D66) -> 155000 | F67: =SUM(F60:F66) -> 150000
A68: Current liabilities [abstract]
A69: Current provisions [abstract]
A70: Current provisions for employee benefits
A71: Other current provisions
A72: Total current provisions
A73: Trade and other current payables
A74: Current tax liabilities, current
A75: Other current financial liabilities | B75: 76000 | D75: 76000 | F75: =160000 -> 160000
A76: Other current non-financial liabilities | F76: 152000
A77: Total current liabilities other than liabilities included in disposal groups classified as held for sale
A78: Liabilities included in disposal groups classified as held for sale
A79: Total current liabilities | B79: =SUM(B70:B78) -> 76000 | D79: =SUM(D70:D78) -> 76000 | F79: =SUM(F70:F78) -> 312000
A80: Total liabilities | B80: =B79+B67 -> 231000 | D80: =D79+D67 -> 231000 | F80: =F79+F67 -> 462000
A81: Total equity and liabilities | B81: =B80+B55:C55 -> 417000 | D81: =D80+D55:E55 -> 417000 | F81: =F80+F55:G55 -> 842000

Sheet instance
A6: RowID | B6: Footnote | C6: Primary Item | D6: Decimals | E6: UnitRef | F6: Fact | G6: Identifier | H6: IdentifierSchema | I6: PeriodInitDuration | J6: PeriodEndInstant | K6: Dimension | L6: DimensionMember | M6: Dimension | N6: DimensionMember | O6: Dimension | P6: DimensionMember | Q6: Dimension | R6: DimensionMember | S6: Dimension | T6: DimensionMember | U6: Dimension | V6: DimensionMember | W6: Dimension | X6: DimensionMember
C7: ifrs:PropertyPlantAndEquipment | D7: 0 | E7: UnitRef | F7: 15000 | G7: BANK 1 | H7: www.bankregulator.gov | J7: 2013-07-07
C8: ifrs:IntangibleAssetsOtherThanGoodwill | D8: 0 | E8: UnitRef | F8: 4000 | G8: BANK 1 | H8: www.bankregulator.gov | J8: 2013-07-07
C9: ifrs:DeferredTaxAssets | D9: 0 | E9: UnitRef | F9: 1000 | G9: BANK 1 | H9: www.bankregulator.gov | J9: 2013-07-07
C10: ifrs:CurrentTaxAssetsNoncurrent | D10: 0 | E10: UnitRef | F10: 3000 | G10: BANK 1 | H10: www.bankregulator.gov | J10: 2013-07-07
C11: ifrs:OtherNoncurrentNonfinancialAssets | D11: 0 | E11: UnitRef | F11: 7000 | G11: BANK 1 | H11: www.bankregulator.gov | J11: 2013-07-07
C12: ifrs:NoncurrentAssets | D12: 0 | E12: UnitRef | F12: 30000 | G12: BANK 1 | H12: www.bankregulator.gov | J12: 2013-07-07
C13: ifrs:TradeAndOtherCurrentReceivables | D13: 0 | E13: UnitRef | F13: 220000 | G13: BANK 1 | H13: www.bankregulator.gov | J13: 2013-07-07
C14: ifrs:OtherCurrentFinancialAssets | D14: 0 | E14: UnitRef | F14: 135000 | G14: BANK 1 | H14: www.bankregulator.gov | J14: 2013-07-07
C15: ifrs:CashAndCashEquivalents | D15: 0 | E15: UnitRef | F15: 32000 | G15: BANK 1 | H15: www.bankregulator.gov | J15: 2013-07-07
C16: ifrs:CurrentAssets | D16: 0 | E16: UnitRef | F16: 387000 | G16: BANK 1 | H16: www.bankregulator.gov | J16: 2013-07-07
C17: ifrs:Assets | D17: 0 | E17: UnitRef | F17: 417000 | G17: BANK 1 | H17: www.bankregulator.gov | J17: 2013-07-07
C18: ifrs:IssuedCapital | D18: 0 | E18: UnitRef | F18: 95000 | G18: BANK 1 | H18: www.bankregulator.gov | J18: 2013-07-07
C19: ifrs:RetainedEarnings | D19: 0 | E19: UnitRef | F19: 86000 | G19: BANK 1 | H19: www.bankregulator.gov | J19: 2013-07-07
C20: ifrs:SharePremium | D20: 0 | E20: UnitRef | F20: 10000 | G20: BANK 1 | H20: www.bankregulator.gov | J20: 2013-07-07
C21: ifrs:TreasuryShares | D21: 0 | E21: UnitRef | F21: -5000 | G21: BANK 1 | H21: www.bankregulator.gov | J21: 2013-07-07
C22: ifrs:Equity | D22: 0 | E22: UnitRef | F22: 186000 | G22: BANK 1 | H22: www.bankregulator.gov | J22: 2013-07-07
C23: ifrs:NoncurrentProvisions | D23: 0 | E23: UnitRef | F23: 12000 | G23: BANK 1 | H23: www.bankregulator.gov | J23: 2013-07-07
C24: ifrs:NoncurrentPayables | D24: 0 | E24: UnitRef | F24: 140000 | G24: BANK 1 | H24: www.bankregulator.gov | J24: 2013-07-07
C25: ifrs:OtherNoncurrentFinancialLiabilities | D25: 0 | E25: UnitRef | F25: 3000 | G25: BANK 1 | H25: www.bankregulator.gov | J25: 2013-07-07
C26: ifrs:NoncurrentLiabilities | D26: 0 | E26: UnitRef | F26: 155000 | G26: BANK 1 | H26: www.bankregulator.gov | J26: 2013-07-07
C27: ifrs:OtherCurrentFinancialLiabilities | D27: 0 | E27: UnitRef | F27: 76000 | G27: BANK 1 | H27: www.bankregulator.gov | J27: 2013-07-07
C28: ifrs:CurrentLiabilities | D28: 0 | E28: UnitRef | F28: 76000 | G28: BANK 1 | H28: www.bankregulator.gov | J28: 2013-07-07
C29: ifrs:Liabilities | D29: 0 | E29: UnitRef | F29: 231000 | G29: BANK 1 | H29: www.bankregulator.gov | J29: 2013-07-07
C30: ifrs:EquityAndLiabilities | D30: 0 | E30: UnitRef | F30: 417000 | G30: BANK 1 | H30: www.bankregulator.gov | J30: 2013-07-07

Sheet data
A6: RowID | B6: Footnote | C6: Primary Item | D6: Decimals | E6: UnitRef | F6: Fact | G6: Identifier | H6: IdentifierSchema | I6: PeriodInitDuration | J6: PeriodEndInstant | K6: Dimension | L6: DimensionMember | M6: Dimension | N6: DimensionMember | O6: Dimension | P6: DimensionMember | Q6: Dimension | R6: DimensionMember | S6: Dimension | T6: DimensionMember | U6: Dimension | V6: DimensionMember | W6: Dimension | X6: DimensionMember
A7: /*
A8: /* | B8: Test for simplified Balance Sheet. Accountant: Allyson Ugarte
A9: /*
A10: =IF(F10=0,"/*","") -> /* | C10: =ENTRY!A15 -> Assets | F10: =ENTRY!B15 -> 0
A11: =IF(F11=0,"/*","") -> /* | C11: =ENTRY!A16 -> Non-current assets | F11: =ENTRY!B16 -> 0
C12: =ENTRY!A17 -> Property, plant and equipment | F12: =ENTRY!B17 -> 15000
A13: /* | C13: =ENTRY!A18 -> Investment property | F13: =ENTRY!B18 -> 0
A14: /* | C14: =ENTRY!A19 -> Goodwill | F14: =ENTRY!B19 -> 0
C15: =ENTRY!A20 -> Intangible assets other than goodwill | F15: =ENTRY!B20 -> 4000
A16: /* | C16: =ENTRY!A21 -> Investments accounted for using equity method | F16: =ENTRY!B21 -> 0
A17: /* | C17: =ENTRY!A22 -> Investments in subsidiaries, joint ventures and associates | F17: =ENTRY!B22 -> 0
A18: /* | C18: =ENTRY!A23 -> Non-current biological assets | F18: =ENTRY!B23 -> 0
A19: /* | C19: =ENTRY!A24 -> Trade and other non-current receivables | F19: =ENTRY!B24 -> 0
A20: /* | C20: =ENTRY!A25 -> Non-current inventories | F20: =ENTRY!B25 -> 0
C21: =ENTRY!A26 -> Deferred tax assets | F21: =ENTRY!B26 -> 1000
C22: =ENTRY!A27 -> Current tax assets, non-current | F22: =ENTRY!B27 -> 3000
A23: /* | C23: =ENTRY!A28 -> Other non-current financial assets | F23: =ENTRY!B28 -> 0
C24: =ENTRY!A29 -> Other non-current non-financial assets | F24: =ENTRY!B29 -> 7000
A25: /* | C25: =ENTRY!A30 -> Non-current non-cash assets pledged as collateral for which transferee has right by contract or custom to sell or repledge collateral | F25: =ENTRY!B30 -> 0
C26: =ENTRY!A31 -> Total non-current assets | F26: =ENTRY!B31 -> 30000
A27: /* | C27: =ENTRY!A32 -> Current assets | F27: =ENTRY!B32 -> 0
A28: /* | C28: =ENTRY!A33 -> Current inventories | F28: =ENTRY!B33 -> 0
C29: =ENTRY!A34 -> Trade and other current receivables | F29: =ENTRY!B34 -> 220000
A30: /* | C30: =ENTRY!A35 -> Current tax assets, current | F30: =ENTRY!B35 -> 0
A31: /* | C31: =ENTRY!A36 -> Current biological assets | F31: =ENTRY!B36 -> 0
C32: =ENTRY!A37 -> Other current financial assets | F32: =ENTRY!B37 -> 135000
A33: /* | C33: =ENTRY!A38 -> Other current non-financial assets | F33: =ENTRY!B38 -> 0
C34: =ENTRY!A39 -> Cash and cash equivalents | F34: =ENTRY!B39 -> 32000
A35: /* | C35: =ENTRY!A40 -> Current non-cash assets pledged as collateral for which transferee has right by contract or custom to sell or repledge collateral | F35: =ENTRY!B40 -> 0
A36: /* | C36: =ENTRY!A41 -> Total current assets other than non-current assets or disposal groups classified as held for sale or as held for distribution to owners | F36: =ENTRY!B41 -> 0
A37: /* | C37: =ENTRY!A42 -> Non-current assets or disposal groups classified as held for sale or as held for distribution to owners | F37: =ENTRY!B42 -> 0
C38: =ENTRY!A43 -> Total current assets | F38: =ENTRY!B43 -> 387000
C39: =ENTRY!A44 -> Total assets | F39: =ENTRY!B44 -> 417000
A40: /* | C40: =ENTRY!A45 -> Equity and liabilities | F40: =ENTRY!B45 -> 0
A41: /* | C41: =ENTRY!A46 -> Equity | F41: =ENTRY!B46 -> 0
C42: =ENTRY!A47 -> Issued capital | F42: =ENTRY!B47 -> 95000
C43: =ENTRY!A48 -> Retained earnings | F43: =ENTRY!B48 -> 86000
C44: =ENTRY!A49 -> Share premium | F44: =ENTRY!B49 -> 10000
C45: =ENTRY!A50 -> Treasury shares | F45: =ENTRY!B50 -> -5000
A46: /* | C46: =ENTRY!A51 -> Other equity interest | F46: =ENTRY!B51 -> 0
A47: /* | C47: =ENTRY!A52 -> Other reserves | F47: =ENTRY!B52 -> 0
A48: /* | C48: =ENTRY!A53 -> Total equity attributable to owners of parent | F48: =ENTRY!B53 -> 0
A49: /* | C49: =ENTRY!A54 -> Non-controlling interests | F49: =ENTRY!B54 -> 0
C50: =ENTRY!A55 -> Total equity | F50: =ENTRY!B55 -> 186000
A51: /* | C51: =ENTRY!A56 -> Liabilities | F51: =ENTRY!B56 -> 0
A52: /* | C52: =ENTRY!A57 -> Non-current liabilities [abstract] | F52: =ENTRY!B57 -> 0
A53: /* | C53: =ENTRY!A58 -> Non-current provisions [abstract] | F53: =ENTRY!B58 -> 0
A54: /* | C54: =ENTRY!A59 -> Non-current provisions for employee benefits | F54: =ENTRY!B59 -> 0
A55: /* | C55: =ENTRY!A60 -> Other non-current provisions | F55: =ENTRY!B60 -> 0
C56: =ENTRY!A61 -> Total non-current provisions | F56: =ENTRY!B61 -> 12000
C57: =ENTRY!A62 -> Trade and other non-current payables | F57: =ENTRY!B62 -> 140000
A58: /* | C58: =ENTRY!A63 -> Deferred tax liabilities | F58: =ENTRY!B63 -> 0
A59: /* | C59: =ENTRY!A64 -> Current tax liabilities, non-current | F59: =ENTRY!B64 -> 0
C60: =ENTRY!A65 -> Other non-current financial liabilities | F60: =ENTRY!B65 -> 3000
A61: /* | C61: =ENTRY!A66 -> Other non-current non-financial liabilities | F61: =ENTRY!B66 -> 0
C62: =ENTRY!A67 -> Total non-current liabilities | F62: =ENTRY!B67 -> 155000
A63: /* | C63: =ENTRY!A68 -> Current liabilities [abstract] | F63: =ENTRY!B68 -> 0
A64: /* | C64: =ENTRY!A69 -> Current provisions [abstract] | F64: =ENTRY!B69 -> 0
A65: /* | C65: =ENTRY!A70 -> Current provisions for employee benefits | F65: =ENTRY!B70 -> 0
A66: /* | C66: =ENTRY!A71 -> Other current provisions | F66: =ENTRY!B71 -> 0
A67: /* | C67: =ENTRY!A72 -> Total current provisions | F67: =ENTRY!B72 -> 0
A68: /* | C68: =ENTRY!A73 -> Trade and other current payables | F68: =ENTRY!B73 -> 0
A69: /* | C69: =ENTRY!A74 -> Current tax liabilities, current | F69: =ENTRY!B74 -> 0
C70: =ENTRY!A75 -> Other current financial liabilities | F70: =ENTRY!B75 -> 76000
A71: /* | C71: =ENTRY!A76 -> Other current non-financial liabilities | F71: =ENTRY!B76 -> 0
A72: /* | C72: =ENTRY!A77 -> Total current liabilities other than liabilities included in disposal groups classified as held for sale | F72: =ENTRY!B77 -> 0
A73: /* | C73: =ENTRY!A78 -> Liabilities included in disposal groups classified as held for sale | F73: =ENTRY!B78 -> 0
C74: =ENTRY!A79 -> Total current liabilities | F74: =ENTRY!B79 -> 76000
A75: =IF(F75=0,"/*","") ->  | C75: =ENTRY!A80 -> Total liabilities | F75: =ENTRY!B80 -> 231000
C76: =ENTRY!A81 -> Total equity and liabilities | F76: =ENTRY!B81 -> 417000

Sheet parameters
A1: RowID | B1: Footnote | C1: Primary Item | D1: Decimals | E1: UnitRef | F1: Fact | G1: Identifier | H1: IdentifierSchema | I1: PeriodInitDuration | J1: PeriodEndInstant | K1: Dimension | L1: DimensionMember | M1: Dimension | N1: DimensionMember | O1: Dimension | P1: DimensionMember | Q1: Dimension | R1: DimensionMember | S1: Dimension | T1: DimensionMember | U1: Dimension | V1: DimensionMember | W1: Dimension | X1: DimensionMember
A2: /*
A3: /*
A4: /* | B4: Test for simplified Balance Sheet. Accountant: Allyson Ugarte
A5: /*
A6: /**OutputHeader | B6: <?xml version="1.0" encoding="UTF-8"?> <xbrli:xbrl xmlns:xsi="http://www.w3.org/2001/XMLSchema-instance" xsi:schemaLocation="http://xbrl.org/2006/xbrldi http://www.xbrl.org/2006/xbrldi-2006.xsd" xmlns:full_entry_point="http://xbrl.ifrs.org/taxonomy/2013-03-28/ifrs/full_entry_point" xmlns:rol_ifric_5_2013-03-28="http://xbrl.ifrs.org/role/ifrs/rol_ifric_5_2013-03-28" xmlns:xbrldi="http://xbrl.org/2006/xbrldi" xmlns:rol_ias_12_2013-03-28="http://xbrl.ifrs.org/role/ifrs/rol_ias_12_2013-03-28" xmlns:rol_ias_40_2013-03-28="http://xbrl.ifrs.org/role/ifrs/rol_ias_40_2013-03-28" xmlns:rol_ifrs_2_2013-03-28="http://xbrl.ifrs.org/role/ifrs/rol_ifrs_2_2013-03-28" xmlns:rol_dim="http://xbrl.ifrs.org/role/ifrs/dimensions" xmlns:rol_ias_37_2013-03-28="http://xbrl.ifrs.org/role/ifrs/rol_ias_37_2013-03-28" xmlns:rol_ifrs_4_2013-03-28="http://xbrl.ifrs.org/role/ifrs/rol_ifrs_4_2013-03-28" xmlns:reference="http://xbrl.org/2008/reference" xmlns:iso4217="http://www.xbrl.org/2003/iso4217" xmlns:rol_ias_8_2013-03-28="http://xbrl.ifrs.org/role/ifrs/rol_ias_8_2013-03-28" xmlns:rol_ias_21_2013-03-28="http://xbrl.ifrs.org/role/ifrs/rol_ias_21_2013-03-28" xmlns:rol_ias_16_2013-03-28="http://xbrl.ifrs.org/role/ifrs/rol_ias_16_2013-03-28" xmlns:rol_ifrs_6_2013-03-28="http://xbrl.ifrs.org/role/ifrs/rol_ifrs_6_2013-03-28" xmlns:rol_sic_27_2013-03-28="http://xbrl.ifrs.org/role/ifrs/rol_sic_27_2013-03-28" xmlns:rol_ias_23_2013-03-28="http://xbrl.ifrs.org/role/ifrs/rol_ias_23_2013-03-28" xmlns:rol_ias_18_2013-03-28="http://xbrl.ifrs.org/role/ifrs/rol_ias_18_2013-03-28" xmlns:num="http://www.xbrl.org/dtr/type/numeric" xmlns:xlink="http://www.w3.org/1999/xlink" xmlns:rol_ifrs_8_2013-03-28="http://xbrl.ifrs.org/role/ifrs/rol_ifrs_8_2013-03-28" xmlns:rol_sic_29_2013-03-28="http://xbrl.ifrs.org/role/ifrs/rol_sic_29_2013-03-28" xmlns:rol_ps_mc_2013-03-28="http://xbrl.ifrs.org/role/ifrs/rol_ps_mc_2013-03-28" xmlns:gen="http://xbrl.org/2008/generic" xmlns:rol_ifrs_12_2013-03-28="http://xbrl.ifrs.org/role/ifrs/rol_ifrs_12_2013-03-28" xmlns:ref="http://www.xbrl.org/2006/ref" xmlns:rol_ifric_2_2013-03-28="http://xbrl.ifrs.org/role/ifrs/rol_ifric_2_2013-03-28" xmlns:rol_ias_1_2013-03-28="http://xbrl.ifrs.org/role/ifrs/rol_ias_1_2013-03-28" xmlns:label="http://xbrl.org/2008/label" xmlns:rol_ias_27_2013-03-28="http://xbrl.ifrs.org/role/ifrs/rol_ias_27_2013-03-28" xmlns:rol_ias_34_2013-03-28="http://xbrl.ifrs.org/role/ifrs/rol_ias_34_2013-03-28" xmlns:nonnum="http://www.xbrl.org/dtr/type/non-numeric" xmlns:rol_ias_11_2013-03-28="http://xbrl.ifrs.org/role/ifrs/rol_ias_11_2013-03-28" xmlns:rol_ias_29_2013-03-28="http://xbrl.ifrs.org/role/ifrs/rol_ias_29_2013-03-28" xmlns:link="http://www.xbrl.org/2003/linkbase" xmlns:rol_ifrs_1_2013-03-28="http://xbrl.ifrs.org/role/ifrs/rol_ifrs_1_2013-03-28" xmlns:rol_ias_41_2013-03-28="http://xbrl.ifrs.org/role/ifrs/rol_ias_41_2013-03-28" xmlns:rol_ias_36_2013-03-28="http://xbrl.ifrs.org/role/ifrs/rol_ias_36_2013-03-28" xmlns:rol_ifrs_3_2013-03-28="http://xbrl.ifrs.org/role/ifrs/rol_ifrs_3_2013-03-28" xmlns:rol_ias_7_2013-03-28="http://xbrl.ifrs.org/role/ifrs/rol_ias_7_2013-03-28" xmlns:rol_ias_20_2013-03-28="http://xbrl.ifrs.org/role/ifrs/rol_ias_20_2013-03-28" xmlns:ifrs="http://xbrl.ifrs.org/taxonomy/2013-03-28/ifrs" xmlns:rol_ias_38_2013-03-28="http://xbrl.ifrs.org/role/ifrs/rol_ias_38_2013-03-28" xmlns:rol_ifrs_5_2013-03-28="http://xbrl.ifrs.org/role/ifrs/rol_ifrs_5_2013-03-28" xmlns:xbrli="http://www.xbrl.org/2003/instance" xmlns:rol_ias_17_2013-03-28="http://xbrl.ifrs.org/role/ifrs/rol_ias_17_2013-03-28" xmlns:rol_ifrs_7_2013-03-28="http://xbrl.ifrs.org/role/ifrs/rol_ifrs_7_2013-03-28" xmlns:rol_ias_19_2013-03-28="http://xbrl.ifrs.org/role/ifrs/rol_ias_19_2013-03-28" xmlns:xbrldt="http://xbrl.org/2005/xbrldt" xmlns:rol_ias_24_2013-03-28="http://xbrl.ifrs.org/role/ifrs/rol_ias_24_2013-03-28" xmlns:net="http://www.xbrl.org/2009/role/net" xmlns:negated="http://www.xbrl.org/2009/role/negated" xmlns:reference_2="http://www.xbrl.org/2009/role/reference" xmlns:rol_ias_26_2013-03-28="http://xbrl.ifrs.org/role/ifrs/rol_ias_26_2013-03-28" xmlns:rol_ifrs_13_2013-03-28="http://xbrl.ifrs.org/role/ifrs/rol_ifrs_13_2013-03-28" xmlns:xl="http://www.xbrl.org/2003/XLink" xmlns:rol_ias_10_2013-03-28="http://xbrl.ifrs.org/role/ifrs/rol_ias_10_2013-03-28" xmlns:rol_ias_2_2013-03-28="http://xbrl.ifrs.org/role/ifrs/rol_ias_2_2013-03-28" xmlns:rol_ias_33_2013-03-28="http://xbrl.ifrs.org/role/ifrs/rol_ias_33_2013-03-28"> <link:schemaRef xlink:type="simple" xlink:href="full_entry_point_2013-03-28.xsd"/>
A7: /**OutputMiddle | B7: =CONCATENATE(C7,D7,E7) -> <xbrli:unit id="UnitRef"> <xbrli:measure>iso4217:USD</xbrli:measure> </xbrli:unit> | C7: <xbrli:unit id="UnitRef"> <xbrli:measure>iso4217: | D7: =ENTRY!B13 -> USD | E7: </xbrli:measure> </xbrli:unit>
A8: /**OutputTail | B8: </xbrli:xbrl>
A9: /*
A10: /**Replace | B10: Entity | D10: 0 | E10: UnitRef | G10: =ENTRY!B9 -> BANK 1 | H10: =ENTRY!B10 -> www.bankregulator.gov | J10: =ENTRY!B12 -> 2013-07-07
A11: /*
A12: /**Replace | B12: Property, plant and equipment | C12: ifrs:PropertyPlantAndEquipment | G12: Entity
A13: /**Replace | B13: Investment property | C13: ifrs:InvestmentProperty | G13: Entity
A14: /**Replace | B14: Goodwill | C14: ifrs:Goodwill | G14: Entity
A15: /**Replace | B15: Intangible assets other than goodwill | C15: ifrs:IntangibleAssetsOtherThanGoodwill | G15: Entity
A16: /**Replace | B16: Investments accounted for using equity method | C16: ifrs:InvestmentAccountedForUsingEquityMethod | G16: Entity
A17: /**Replace | B17: Investments in subsidiaries, joint ventures and associates | C17: ifrs:InvestmentsInSubsidiariesJointVenturesAndAssociates | G17: Entity
A18: /**Replace | B18: Non-current biological assets | C18: ifrs:NoncurrentBiologicalAssets | G18: Entity
A19: /**Replace | B19: Trade and other non-current receivables | C19: ifrs:NoncurrentReceivables | G19: Entity
A20: /**Replace | B20: Non-current inventories | C20: ifrs:NoncurrentInventories | G20: Entity
A21: /**Replace | B21: Deferred tax assets | C21: ifrs:DeferredTaxAssets | G21: Entity
A22: /**Replace | B22: Current tax assets, non-current | C22: ifrs:CurrentTaxAssetsNoncurrent | G22: Entity
A23: /**Replace | B23: Other non-current financial assets | C23: ifrs:OtherNoncurrentNonfinancialAssets | G23: Entity
A24: /**Replace | B24: Other non-current non-financial assets | C24: ifrs:OtherNoncurrentNonfinancialAssets | G24: Entity
A25: /**Replace | B25: Non-current non-cash assets pledged as collateral for which transferee has right by contract or custom to sell or repledge collateral | C25: ifrs:NoncurrentNoncashAssetsPledgedAsCollateralForWhichTransfereeHasRightByContractOrCustomToSellOrRepledgeCollateral | G25: Entity
A26: /**Replace | B26: Total non-current assets | C26: ifrs:NoncurrentAssets | G26: Entity
A27: /**Replace | B27: Current inventories | C27: ifrs:Inventories | G27: Entity
A28: /**Replace | B28: Trade and other current receivables | C28: ifrs:TradeAndOtherCurrentReceivables | G28: Entity
A29: /**Replace | B29: Current tax assets, current | C29: ifrs:CurrentTaxAssetsCurrent | G29: Entity
A30: /**Replace | B30: Current biological assets | C30: ifrs:CurrentBiologicalAssets | G30: Entity
A31: /**Replace | B31: Other current financial assets | C31: ifrs:OtherCurrentFinancialAssets | G31: Entity
A32: /**Replace | B32: Other current non-financial assets | C32: ifrs:OtherCurrentNonfinancialAssets | G32: Entity
A33: /**Replace | B33: Cash and cash equivalents | C33: ifrs:CashAndCashEquivalents | G33: Entity
A34: /**Replace | B34: Current non-cash assets pledged as collateral for which transferee has right by contract or custom to sell or repledge collateral | C34: ifrs:CurrentNoncashAssetsPledgedAsCollateralForWhichTransfereeHasRightByContractOrCustomToSellOrRepledgeCollateral | G34: Entity
A35: /**Replace | B35: Total current assets other than non-current assets or disposal groups classified as held for sale or as held for distribution to owners | C35: ifrs:CurrentAssetsOtherThanAssetsOrDisposalGroupsClassifiedAsHeldForSaleOrAsHeldForDistributionToOwners | G35: Entity
A36: /**Replace | B36: Non-current assets or disposal groups classified as held for sale or as held for distribution to owners | C36: ifrs:NoncurrentAssetsOrDisposalGroupsClassifiedAsHeldForSaleOrAsHeldForDistributionToOwners | G36: Entity
A37: /**Replace | B37: Total current assets | C37: ifrs:CurrentAssets | G37: Entity
A38: /**Replace | B38: Total assets | C38: ifrs:Assets | G38: Entity
A39: /**Replace | B39: Issued capital | C39: ifrs:IssuedCapital | G39: Entity
A40: /**Replace | B40: Retained earnings | C40: ifrs:RetainedEarnings | G40: Entity
A41: /**Replace | B41: Share premium | C41: ifrs:SharePremium | G41: Entity
A42: /**Replace | B42: Treasury shares | C42: ifrs:TreasuryShares | G42: Entity
A43: /**Replace | B43: Other equity interest | C43: ifrs:OtherEquityInterest | G43: Entity
A44: /**Replace | B44: Other reserves | C44: ifrs:OtherReserves | G44: Entity
A45: /**Replace | B45: Non-controlling interests | C45: ifrs:NoncontrollingInterests | G45: Entity
A46: /**Replace | B46: Total equity | C46: ifrs:Equity | G46: Entity
A47: /**Replace | B47: Non-current provisions for employee benefits | C47: ifrs:NoncurrentProvisionsForEmployeeBenefits | G47: Entity
A48: /**Replace | B48: Other non-current provisions | C48: ifrs:OtherLongtermProvisions | G48: Entity
A49: /**Replace | B49: Total non-current provisions | C49: ifrs:NoncurrentProvisions | G49: Entity
A50: /**Replace | B50: Trade and other non-current payables | C50: ifrs:NoncurrentPayables | G50: Entity
A51: /**Replace | B51: Deferred tax liabilities | C51: ifrs:DeferredTaxLiabilities | G51: Entity
A52: /**Replace | B52: Current tax liabilities, non-current | C52: ifrs:CurrentTaxLiabilitiesNoncurrent | G52: Entity
A53: /**Replace | B53: Other non-current financial liabilities | C53: ifrs:OtherNoncurrentFinancialLiabilities | G53: Entity
A54: /**Replace | B54: Other non-current non-financial liabilities | C54: ifrs:OtherNoncurrentNonfinancialLiabilities | G54: Entity
A55: /**Replace | B55: Total non-current liabilities | C55: ifrs:NoncurrentLiabilities | G55: Entity
A56: /**Replace | B56: Current provisions for employee benefits | C56: ifrs:CurrentProvisionsForEmployeeBenefits | G56: Entity
A57: /**Replace | B57: Other current provisions | C57: ifrs:OtherShorttermProvisions | G57: Entity
A58: /**Replace | B58: Total current provisions | C58: ifrs:CurrentProvisions | G58: Entity
A59: /**Replace | B59: Trade and other current payables | C59: ifrs:TradeAndOtherCurrentPayables | G59: Entity
A60: /**Replace | B60: Current tax liabilities, current | C60: ifrs:CurrentTaxLiabilitiesCurrent | G60: Entity
A61: /**Replace | B61: Other current financial liabilities | C61: ifrs:OtherCurrentFinancialLiabilities | G61: Entity
A62: /**Replace | B62: Other current non-financial liabilities | C62: ifrs:OtherCurrentNonfinancialLiabilities | G62: Entity
A63: /**Replace | B63: Total current liabilities other than liabilities included in disposal groups classified as held for sale | C63: ifrs:CurrentLiabilitiesOtherThanLiabilitiesIncludedInDisposalGroupsClassifiedAsHeldForSale | G63: Entity
A64: /**Replace | B64: Liabilities included in disposal groups classified as held for sale | C64: ifrs:LiabilitiesIncludedInDisposalGroupsClassifiedAsHeldForSal | G64: Entity
A65: /**Replace | B65: Total current liabilities | C65: ifrs:CurrentLiabilities | G65: Entity
A66: /**Replace | B66: Total liabilities | C66: ifrs:Liabilities | G66: Entity
A67: /**Replace | B67: Total equity and liabilities | C67: ifrs:EquityAndLiabilities | G67: Entity
